bitfinex/quotes_SOLUSD_20251002
["timestamp","ask_amount","ask_price","bid_price","bid_amount"]
[1759379542190,0.63,223.29,223.2,10.87647521]
[1759379542398,5.10855133,223.29,223.22,10.87647521]
[1759379542720,5.10855133,223.29,223.21,10.87647521]
[1759379544400,5.10855133,223.29,223.22,0.69]
[1759379547496,5.10855133,223.29,223.16,32.00237221]
[1759379547497,5.10855133,223.29,223.18,0.69]
[1759379547815,3.94725387,223.28,223.18,0.69]
[1759379548024,5.10855133,223.29,223.19,10.87647521]
[1759379548319,5.10855133,223.29,223.21,10.87647521]
[1759379548624,33.28,223.28,223.22,0.69]
[1759379549303,3.94725387,223.33,223.22,0.69]
[1759379549500,33.26,223.32,223.22,5.16984646]
[1759379550137,33.26,223.32,223.23,0.69]
[1759379550310,37.73787927,223.32,223.23,0.69]
[1759379550508,11.19391519,223.34,223.24,10.87647521]
[1759379550509,4.4776453,223.34,223.24,10.87647521]
[1759379550714,33.26,223.33,223.25,0.69]
[1759379551634,4.47787927,223.32,223.25,0.69]
[1759379552214,33.26,223.33,223.25,0.69]
[1759379552215,3.94725387,223.36,223.26,10.87647521]
[1759379552423,33.24,223.33,223.26,90.07647521]
[1759379552718,33.24,223.33,223.26,79.2]
[1759379554134,13.50504246,223.45,223.28,10.87647521]
[1759379554317,3.94725387,223.39,223.29,0.69]
[1759379554522,33.2,223.38,223.29,0.69]
[1759379554713,33.2,223.38,223.29,79.89]
[1759379554917,33.2,223.38,223.3,0.69]
[1759379555252,33.2,223.38,223.31,10.87647521]
[1759379555442,33.2,223.38,223.33,10.87647521]
[1759379555733,33.2,223.38,223.35,10.87647521]
[1759379555934,33.2,223.38,223.36,0.69]
[1759379556237,33.2,223.38,223.35,10.87647521]
[1759379556238,33.2,223.38,223.37,0.69]
[1759379557003,4.47581533,223.43,223.37,0.69]
[1759379557207,37.69581533,223.43,223.37,0.69]
[1759379558025,37.69581533,223.43,223.37,5.16680354]
[1759379558026,33.22,223.43,223.37,5.16680354]
[1759379558207,33.18,223.44,223.38,11.56647521]
[1759379558931,33.18,223.52,223.4,10.87647521]
[1759379559141,3.94725387,223.46,223.4,79.2]
[1759379559351,4.47527411,223.45,223.4,79.2]
[1759379559564,8.42252798,223.45,223.4,79.2]
[1759379559872,3.94725387,223.43,223.4,79.2]
[1759379560015,3.94725387,223.44,223.37,79.2]
[1759379560614,19.61071325,223.45,223.37,79.2]
[1759379560814,4.47527411,223.45,223.38,0.69]
[1759379561037,33.22,223.46,223.38,0.69]
[1759379561331,37.69513815,223.46,223.38,5.16658636]
[1759379561633,37.69513815,223.46,223.39,0.69]
[1759379561824,33.2,223.45,223.4,10.87647521]
[1759379562223,33.2,223.45,223.41,0.69]
[1759379563523,37.6753188,223.45,223.41,0.69]
[1759379563726,37.6753188,223.45,223.4,10.87647521]
[1759379563923,37.6753188,223.45,223.41,10.87647521]
[1759379564423,3.94725387,223.43,223.34,20.8]
[1759379564614,3.94725387,223.43,223.35,11.56647521]
[1759379564815,3.94725387,223.44,223.35,11.56647521]
[1759379565230,41.62257267,223.45,223.35,11.56647521]
[1759379565717,52.81075794,223.45,223.35,16.04371536]
[1759379565917,48.86350407,223.45,223.36,0.69]
[1759379566419,37.6753188,223.45,223.36,0.69]
[1759379568051,37.6753188,223.45,223.37,4.47687693]
[1759379568230,37.6753188,223.45,223.38,0.69]
[1759379571929,33.2,223.45,223.39,10.87647521]
[1759379572126,33.2,223.45,223.4,0.69]
[1759379572328,33.2,223.45,223.39,10.87647521]
[1759379572527,33.2,223.45,223.42,10.87647521]
[1759379573132,33.2,223.45,223.41,10.87647521]
[1759379573331,33.2,223.45,223.41,0.69]
[1759379575925,33.2,223.45,223.42,0.68]
[1759379576124,33.2,223.45,223.43,0.68]
[1759379576439,33.2,223.45,223.41,0.68]
[1759379576746,33.2,223.45,223.42,0.68]
[1759379577644,33.2,223.45,223.4,10.87647521]
[1759379577825,37.67528217,223.45,223.4,11.55647521]
[1759379579130,37.67528217,223.45,223.4,11.33259521]
[1759379579661,37.67528217,223.45,223.37,0.68]
[1759379579963,5.69249796,223.44,223.35,5.15709776]
[1759379580132,43.36778013,223.45,223.35,5.15709776]
[1759379581034,48.86346744,223.45,223.36,15.35349998]
[1759379581240,48.86346744,223.45,223.36,16.03349998]
[1759379582833,48.86346744,223.45,223.36,90.75647521]
[1759379583054,54.5559654,223.45,223.36,90.07647521]
[1759379583931,48.86346744,223.45,223.36,94.55350219]
[1759379584132,48.86346744,223.45,223.36,90.07647521]
[1759379584334,5.69249796,223.44,223.36,90.07647521]
[1759379584528,5.69249796,223.43,223.36,90.07647521]
[1759379584864,4.47587503,223.42,223.36,90.07647521]
[1759379585067,32.84,223.41,223.36,90.07647521]
[1759379585535,32.84,223.41,223.36,90.75647521]
[1759379585953,32.84,223.41,223.37,0.68]
[1759379586941,37.3162207,223.41,223.37,0.68]
[1759379587439,32.84,223.41,223.37,0.68]
[1759379587934,32.84,223.41,223.37,79.2]
[1759379588353,32.84,223.41,223.37,79.88]
[1759379589852,37.31608453,223.41,223.37,79.88]
[1759379590362,37.31608453,223.41,223.37,79.2]
[1759379590363,5.69249796,223.4,223.37,79.2]
[1759379590936,10.16886279,223.4,223.37,79.2]
[1759379591150,5.69249796,223.39,223.37,79.2]
[1759379591655,5.69249796,223.39,223.29,143.59594725]
[1759379591656,5.69249796,223.38,223.29,10.87647521]
[1759379591861,15.66705417,223.4,223.29,10.87647521]
[1759379591862,5.69249796,223.34,223.29,11.55647521]
[1759379592078,15.66705417,223.4,223.29,11.55647521]
[1759379592079,32.74,223.33,223.31,10.87647521]
[1759379592370,32.76,223.32,223.31,11.55647521]
[1759379594544,32.76,223.32,223.3,11.55647521]
[1759379594948,32.76,223.32,223.31,0.68]
[1759379595958,5.69249796,223.4,223.31,0.68]
[1759379596161,38.39249796,223.39,223.32,10.87647521]
[1759379596365,32.7,223.38,223.34,10.87647521]
[1759379596562,32.7,223.38,223.35,0.68]
[1759379596946,32.7,223.38,223.34,10.87647521]
[1759379596947,32.7,223.38,223.36,0.68]
[1759379597145,32.7,223.38,223.36,79.88]
[1759379598766,38.39249796,223.38,223.36,79.2]
[1759379599342,38.39249796,223.38,223.36,79.88]
[1759379600452,38.39249796,223.38,223.36,79.2]
[1759379600765,32.7,223.38,223.37,0.68]
[1759379600967,32.7,223.38,223.36,79.2]
[1759379601140,32.7,223.38,223.36,79.88]
[1759379601759,32.7,223.38,223.37,0.66]
[1759379602148,32.7,223.38,223.36,79.2]
[1759379602149,38.39249796,223.38,223.36,79.2]
[1759379602340,2.36225735,223.37,223.36,79.2]
[1759379602545,2.36225735,223.37,223.32,79.2]
[1759379602946,2.36225735,223.33,223.32,79.2]
[1759379603157,35.00225735,223.33,223.32,79.2]
[1759379603363,35.00225735,223.33,223.26,11.53647521]
[1759379603570,2.36225735,223.29,223.26,90.73647521]
[1759379603754,2.36225735,223.29,223.27,11.53647521]
[1759379603755,32.64,223.28,223.27,11.53647521]
[1759379603954,32.64,223.28,223.27,90.73647521]
[1759379608261,4.47687693,223.37,223.27,95.21535728]
[1759379608576,2.36225735,223.31,223.28,10.87647521]
[1759379608878,32.58,223.3,223.29,11.53647521]
[1759379609176,32.58,223.3,223.29,90.73647521]
[1759379609678,32.58,223.3,223.29,95.2149561]
[1759379609847,2.36225735,223.37,223.3,10.87647521]
[1759379610052,4.47627573,223.4,223.32,10.87647521]
[1759379610053,32.58,223.36,223.32,10.87647521]
[1759379610257,2.36225735,223.39,223.34,10.87647521]
[1759379610575,32.58,223.38,223.35,0.66]
[1759379610882,32.58,223.38,223.36,0.66]
[1759379611259,32.58,223.38,223.37,0.66]
[1759379612064,32.58,223.38,223.34,94.55380199]
[1759379612276,32.58,223.38,223.35,0.66]
[1759379612572,32.58,223.38,223.36,0.66]
[1759379612775,32.56,223.37,223.36,11.53647521]
[1759379612977,32.56,223.37,223.35,10.87647521]
[1759379613484,32.56,223.37,223.36,0.66]
[1759379614973,2.36225735,223.42,223.36,0.66]
[1759379615173,32.54,223.41,223.37,10.87647521]
[1759379615378,32.54,223.41,223.38,5.13667651]
[1759379615686,32.54,223.41,223.39,0.66]
[1759379615879,6.83794361,223.43,223.39,0.66]
[1759379616058,2.36225735,223.43,223.4,0.66]
[1759379616255,4.47544377,223.45,223.41,11.53647521]
[1759379616256,32.52,223.42,223.41,11.53647521]
[1759379616456,32.52,223.42,223.41,90.73647521]
[1759379617078,34.88225735,223.42,223.41,79.2]
[1759379617262,39.35813238,223.42,223.41,79.2]
[1759379618078,32.52,223.42,223.41,79.2]
[1759379618585,2.36225735,223.43,223.41,79.2]
[1759379618757,32.5,223.42,223.41,79.2]
[1759379619159,2.36225735,223.44,223.41,79.2]
[1759379619357,32.48,223.43,223.42,0.66]
[1759379619983,32.48,223.43,223.41,79.2]
[1759379620171,34.84225735,223.43,223.41,79.2]
[1759379620881,32.48,223.43,223.41,79.2]
[1759379621982,2.36225735,223.42,223.41,79.2]
[1759379622285,34.84225735,223.43,223.41,79.2]
[1759379622581,2.36225735,223.42,223.41,79.2]
[1759379622757,2.36225735,223.42,223.36,79.2]
[1759379622958,2.36225735,223.38,223.36,79.2]
[1759379623187,32.46,223.37,223.36,79.86]
[1759379625373,6.838311,223.42,223.36,79.86]
[1759379625575,32.44,223.41,223.37,0.66]
[1759379625775,32.44,223.41,223.38,0.66]
[1759379626085,34.80225735,223.41,223.38,0.66]
[1759379626287,2.36225735,223.4,223.38,0.66]
[1759379629370,34.80225735,223.41,223.38,0.66]
[1759379629683,34.80225735,223.41,223.38,79.86]
[1759379629879,39.27833628,223.41,223.38,79.86]
[1759379631197,2.36225735,223.41,223.39,0.66]
[1759379631386,2.36225735,223.43,223.4,0.66]
[1759379631588,32.36,223.42,223.4,0.66]
[1759379631898,2.36225735,223.43,223.41,0.66]
[1759379632076,32.36,223.42,223.41,79.86]
[1759379632580,39.19813238,223.42,223.41,79.2]
[1759379635502,39.19813238,223.42,223.36,79.86]
[1759379635503,50.38781996,223.42,223.36,79.86]
[1759379635672,2.36225735,223.38,223.36,79.86]
[1759379635872,32.34,223.37,223.36,79.2]
[1759379636598,32.34,223.37,223.36,79.92]
[1759379640515,32.34,223.37,223.36,79.2]
[1759379640875,4.47625205,223.41,223.36,79.92]
[1759379641084,33.7915886,223.4,223.37,0.72]
[1759379641418,33.7915886,223.4,223.37,79.2]
[1759379641583,33.7915886,223.4,223.37,79.92]
[1759379641785,38.26797655,223.4,223.37,79.92]
[1759379642380,1.5115886,223.39,223.37,79.2]
[1759379642583,1.5115886,223.38,223.37,79.2]
[1759379642786,36.75638795,223.4,223.37,79.2]
[1759379642983,1.5115886,223.38,223.37,79.2]
[1759379644603,5.98826511,223.38,223.37,79.2]
[1759379644786,5.98826511,223.38,223.32,0.72]
[1759379644998,1.5115886,223.35,223.32,0.72]
[1759379645199,32.26,223.34,223.33,0.72]
[1759379645404,33.7715886,223.34,223.28,0.72]
[1759379645583,1.5115886,223.29,223.26,79.2]
[1759379645785,1.5115886,223.27,223.25,11.59647521]
[1759379646106,32.32,223.26,223.25,11.59647521]
[1759379647987,36.79908268,223.26,223.23,0.72]
[1759379648205,38.31067128,223.26,223.23,0.72]
[1759379648618,36.79908268,223.26,223.23,0.72]
[1759379648910,36.79908268,223.26,223.22,79.2]
[1759379648911,32.32,223.26,223.24,0.72]
[1759379649115,32.32,223.26,223.25,0.72]
[1759379649683,4.47787927,223.32,223.25,0.72]
[1759379649887,1.5115886,223.26,223.23,10.87647521]
[1759379650082,1.5115886,223.26,223.24,0.72]
[1759379650083,32.3,223.25,223.24,0.72]
[1759379650284,32.3,223.25,223.21,2.33709884]
[1759379650512,5.99122716,223.24,223.21,82.25709884]
[1759379650696,1.5115886,223.22,223.21,2.33709884]
[1759379650893,1.5115886,223.22,223.17,79.3]
[1759379650894,33.8315886,223.22,223.17,0.82]
[1759379651103,1.5115886,223.2,223.17,0.82]
[1759379651297,32.32,223.19,223.18,2.33911615]
[1759379652325,32.32,223.19,223.17,0.1]
[1759379652490,5.99227683,223.18,223.17,0.1]
[1759379652690,1.5115886,223.18,223.17,0.1]
[1759379653719,33.8315886,223.19,223.17,0.82]
[1759379655315,32.32,223.18,223.17,0.1]
[1759379656120,32.32,223.18,223.17,0.82]
[1759379658226,32.28,223.18,223.17,0.82]
[1759379659843,32.26,223.18,223.17,0.82]
[1759379660436,32.26,223.18,223.17,90.89647521]
[1759379661428,32.26,223.18,223.17,95.37733729]
[1759379661922,1.5115886,223.21,223.17,95.37733729]
[1759379662122,32.24,223.2,223.18,0.71]
[1759379662324,32.24,223.19,223.18,0.71]
[1759379662710,32.24,223.19,223.18,11.58647521]
[1759379663232,4.47991579,223.22,223.18,11.58647521]
[1759379663421,1.5115886,223.2,223.18,11.58647521]
[1759379663622,1.5115886,223.2,223.19,0.71]
[1759379664951,32.24,223.21,223.19,0.71]
[1759379665233,33.7515886,223.21,223.19,0.71]
[1759379666322,24.65620119,223.27,223.2,0.67]
[1759379666634,1.5115886,223.21,223.2,79.87]
[1759379666822,1.5115886,223.21,223.2,79.2]
[1759379666823,32.2,223.21,223.2,79.2]
[1759379667030,33.7115886,223.21,223.2,79.2]
[1759379667208,32.2,223.21,223.2,79.87]
[1759379668032,13.4586483,223.27,223.21,10.87647521]
[1759379668233,1.5115886,223.25,223.22,0.67]
[1759379668425,32.18,223.24,223.22,0.67]
[1759379668627,32.18,223.24,223.23,0.67]
[1759379668835,33.6915886,223.24,223.21,79.87]
[1759379669141,1.5115886,223.24,223.22,0.67]
[1759379669442,32.18,223.23,223.21,79.2]
[1759379669936,32.18,223.23,223.22,0.67]
[1759379671840,32.18,223.23,223.22,5.14988531]
[1759379672025,32.18,223.23,223.22,0.67]
[1759379673942,32.18,223.23,223.22,79.87]
[1759379674241,32.18,223.23,223.22,84.34988531]
[1759379674430,32.18,223.23,223.22,79.87]
[1759379675038,33.6915886,223.23,223.22,79.2]
[1759379675549,38.17127323,223.23,223.22,79.2]
[1759379676619,1.5115886,223.23,223.19,10.87647521]
[1759379676838,1.5115886,223.23,223.2,0.67]
[1759379677031,1.5115886,223.22,223.18,79.2]
[1759379677235,1.5115886,223.2,223.17,0.1]
[1759379677537,1.5115886,223.2,223.18,0.67]
[1759379677943,1.5115886,223.2,223.17,0.1]
[1759379678241,1.5115886,223.2,223.17,0.77]
[1759379679135,1.5115886,223.2,223.18,0.67]
[1759379679354,33.6915886,223.21,223.19,0.67]
[1759379679723,32.18,223.21,223.17,4.58083894]
[1759379679923,1.5115886,223.22,223.17,4.58083894]
[1759379679924,1.5115886,223.22,223.2,0.67]
[1759379680135,33.6715886,223.21,223.2,0.67]
[1759379680750,1.5115886,223.21,223.2,0.67]
[1759379681050,32.16,223.21,223.2,0.67]
[1759379681838,4.47827149,223.31,223.21,31.67647521]
[1759379682047,4.47784138,223.33,223.22,0.67]
[1759379682346,32.26,223.32,223.22,0.67]
[1759379682531,1.5115886,223.28,223.22,0.67]
[1759379682729,32.26,223.27,223.22,0.67]
[1759379683544,32.26,223.27,223.22,5.14972612]
[1759379683754,32.26,223.27,223.24,10.87647521]
[1759379683935,32.26,223.27,223.26,10.87647521]
[1759379684141,32.26,223.27,223.24,10.87647521]
[1759379684339,33.7715886,223.27,223.24,10.87647521]
[1759379684541,33.7715886,223.27,223.25,0.67]
[1759379684740,32.26,223.27,223.25,0.67]
[1759379684946,32.26,223.27,223.23,10.87647521]
[1759379685148,32.26,223.27,223.23,11.54647521]
[1759379685460,1.5115886,223.26,223.22,10.87647521]
[1759379685621,1.5115886,223.26,223.23,0.67]
[1759379686431,38.2504939,223.27,223.23,0.67]
[1759379686632,32.26,223.27,223.24,0.67]
[1759379686861,32.26,223.27,223.25,0.67]
[1759379687038,5.98987978,223.3,223.26,0.67]
[1759379687245,32.22,223.29,223.26,0.67]
[1759379687637,32.22,223.29,223.25,10.87647521]
[1759379687858,33.7315886,223.29,223.26,0.67]
[1759379688244,1.5115886,223.28,223.26,0.67]
[1759379688967,1.5115886,223.28,223.26,79.87]
[1759379690865,1.5115886,223.27,223.26,79.2]
[1759379691388,1.5115886,223.27,223.2,10.87647521]
[1759379691681,18.66204095,223.28,223.18,10.87647521]
[1759379691995,1.5115886,223.22,223.18,11.54647521]
[1759379692285,32.2,223.21,223.18,11.54647521]
[1759379692502,33.7115886,223.21,223.18,11.54647521]
[1759379692772,1.5115886,223.2,223.17,2.43834809]
[1759379692954,32.2,223.21,223.18,0.67]
[1759379693349,33.7115886,223.21,223.18,0.67]
[1759379694670,1.5115886,223.2,223.18,0.67]
[1759379694864,39.58690014,223.3,223.19,10.87647521]
[1759379694865,13.45985597,223.3,223.19,10.87647521]
[1759379695071,1.5115886,223.28,223.21,10.87647521]
[1759379695271,1.5115886,223.26,223.22,0.67]
[1759379695575,33.6915886,223.25,223.22,0.67]
[1759379695776,2.9888828,223.31,223.22,0.67]
[1759379695777,33.7515886,223.24,223.22,0.67]
[1759379695972,33.7515886,223.24,223.18,36.15716344]
[1759379696175,33.7515886,223.24,223.19,0.67]
[1759379696678,32.24,223.24,223.19,5.15037482]
[1759379696852,32.24,223.24,223.2,0.67]
[1759379697053,32.24,223.24,223.21,0.67]
[1759379697972,32.24,223.24,223.19,4.48037482]
[1759379698175,32.24,223.24,223.22,0.67]
[1759379698783,2.36494385,223.27,223.23,0.67]
[1759379699083,2.36494385,223.27,223.21,4.48005897]
[1759379699084,32.2,223.26,223.24,0.67]
[1759379699390,32.2,223.26,223.25,0.67]
[1759379699691,32.2,223.26,223.21,4.48005897]
[1759379699866,32.2,223.26,223.22,0.67]
[1759379700068,32.2,223.26,223.23,0.67]
[1759379700069,34.56494385,223.26,223.23,0.67]
[1759379700278,39.04405651,223.26,223.23,0.67]
[1759379700479,2.36494385,223.25,223.21,0.67]
[1759379700686,2.36494385,223.23,223.21,79.2]
[1759379700881,34.54494385,223.22,223.21,79.2]
[1759379701478,32.18,223.27,223.21,0.67]
[1759379701688,34.54494385,223.26,223.21,0.67]
[1759379701885,2.36494385,223.24,223.18,15.35716344]
[1759379702073,2.36494385,223.23,223.19,0.67]
[1759379702268,2.36494385,223.23,223.18,15.35716344]
[1759379702475,2.36494385,223.23,223.19,0.67]
[1759379702673,34.54494385,223.25,223.19,0.67]
[1759379703485,2.36494385,223.25,223.19,0.67]
[1759379703691,32.22,223.24,223.19,0.67]
[1759379703891,32.22,223.24,223.2,4.48028673]
[1759379704088,32.22,223.24,223.21,0.67]
[1759379704296,32.22,223.24,223.22,0.67]
[1759379704895,2.36494385,223.26,223.23,0.67]
[1759379705065,32.22,223.25,223.24,0.67]
[1759379705265,32.2,223.25,223.24,0.67]
[1759379706996,32.2,223.25,223.24,5.14948396]
[1759379708612,2.99215119,223.29,223.24,5.14948396]
[1759379708613,2.99215119,223.29,223.25,10.87647521]
[1759379708900,15.86,223.39,223.27,10.87647521]
[1759379709098,15.86,223.39,223.33,10.87647521]
[1759379709312,15.86,223.39,223.34,0.67]
[1759379709602,15.86,223.39,223.35,0.67]
[1759379709803,15.86,223.39,223.36,0.67]
[1759379712388,20.8,223.44,223.37,0.67]
[1759379712600,32.52,223.43,223.37,0.67]
[1759379713703,4.47587503,223.42,223.37,0.67]
[1759379714292,4.47587503,223.42,223.38,0.67]
[1759379714689,2.36494385,223.4,223.3,20.8]
[1759379714891,2.36494385,223.39,223.33,0.67]
[1759379715202,34.82494385,223.38,223.33,0.67]
[1759379715399,34.82494385,223.38,223.34,0.67]
[1759379715891,39.3016636,223.38,223.34,0.67]
[1759379717104,2.36494385,223.37,223.31,10.87647521]
[1759379717298,36.93671975,223.38,223.31,10.87647521]
[1759379717299,2.36494385,223.36,223.31,90.07647521]
[1759379717490,2.36494385,223.35,223.31,90.07647521]
[1759379717694,32.44,223.34,223.32,0.67]
[1759379718213,32.44,223.34,223.31,94.55455352]
[1759379718388,32.44,223.34,223.33,0.67]
[1759379720208,6.84185139,223.37,223.33,0.67]
[1759379720517,32.44,223.34,223.33,0.67]
[1759379721716,32.44,223.34,223.33,79.87]
[1759379722919,32.44,223.34,223.33,79.2]
[1759379724114,39.28242213,223.34,223.33,79.2]
[1759379724715,39.20242213,223.34,223.33,79.2]
[1759379725608,50.39611784,223.34,223.29,79.2]
[1759379725816,2.36494385,223.31,223.29,79.2]
[1759379726020,32.34,223.3,223.29,79.2]
[1759379726999,32.34,223.3,223.29,79.9]
[1759379728310,32.34,223.3,223.29,79.2]
[1759379728511,32.34,223.3,223.29,79.9]
[1759379729530,32.34,223.3,223.29,79.2]
[1759379729701,36.81828034,223.3,223.29,79.2]
[1759379734237,4.47807979,223.31,223.29,79.2]
[1759379734418,32.28,223.3,223.29,79.2]
[1759379735133,32.26,223.3,223.29,79.2]
[1759379735806,32.26,223.3,223.29,79.9]
[1759379736235,28.62286814,223.3,223.29,79.2]
[1759379736910,28.62286814,223.3,223.29,79.9]
[1759379737111,33.10114848,223.3,223.29,79.9]
[1759379737634,33.10114848,223.3,223.29,79.2]
[1759379738338,33.10114848,223.3,223.29,79.9]
[1759379742057,36.65828034,223.3,223.29,79.9]
[1759379742340,32.18,223.3,223.29,79.9]
[1759379743540,15.6676664,223.39,223.3,10.87647521]
[1759379743729,34.52494385,223.38,223.31,0.7]
[1759379744235,2.36494385,223.37,223.31,0.7]
[1759379744429,32.16,223.36,223.31,0.7]
[1759379744627,4.47727781,223.35,223.31,0.7]
[1759379745338,32.16,223.34,223.31,0.7]
[1759379745542,32.16,223.34,223.32,0.7]
[1759379745934,32.16,223.33,223.32,0.7]
[1759379746249,4.47727781,223.35,223.32,0.7]
[1759379746552,32.16,223.33,223.32,0.7]
[1759379748229,4.47727781,223.35,223.32,0.7]
[1759379748425,32.16,223.34,223.33,0.7]
[1759379749142,36.63747828,223.34,223.33,0.7]
[1759379749326,4.47747828,223.34,223.33,0.7]
[1759379749523,36.59747828,223.34,223.33,0.7]
[1759379750454,32.12,223.34,223.33,0.7]
[1759379752930,55.74,223.43,223.33,0.7]
[1759379752931,4.47587503,223.42,223.33,36.85412446]
[1759379753146,32.12,223.41,223.35,10.87647521]
[1759379753350,32.12,223.41,223.36,0.7]
[1759379753945,34.48494385,223.41,223.36,0.7]
[1759379754444,4.47627573,223.4,223.36,0.7]
[1759379757641,4.47627573,223.4,223.37,0.66]
[1759379757845,4.47627573,223.4,223.38,0.66]
[1759379758068,4.47627573,223.4,223.38,79.86]
[1759379758367,6.84121958,223.4,223.38,79.2]
[1759379758539,2.36494385,223.39,223.38,79.2]
[1759379759048,2.36494385,223.39,223.32,79.2]
[1759379759244,2.36494385,223.34,223.32,79.2]
[1759379759557,32.06,223.33,223.32,79.2]
[1759379759758,32.06,223.33,223.32,79.86]
[1759379760576,33.57233875,223.33,223.32,79.86]
[1759379761859,32.06,223.33,223.32,79.86]
[1759379762063,33.57233875,223.33,223.32,79.86]
[1759379762258,32.06,223.33,223.32,79.86]
[1759379762751,32.06,223.33,223.32,79.2]
[1759379762950,32.06,223.33,223.32,79.86]
[1759379763145,33.57233875,223.33,223.29,0.66]
[1759379763348,1.51233875,223.31,223.29,0.66]
[1759379763557,33.55233875,223.3,223.29,79.2]
[1759379764261,4.47687693,223.37,223.3,10.87647521]
[1759379764465,32.04,223.36,223.31,0.66]
[1759379764652,1.51233875,223.34,223.32,0.66]
[1759379764857,32.04,223.33,223.3,10.87647521]
[1759379765270,33.55233875,223.33,223.3,10.87647521]
[1759379765450,33.55233875,223.33,223.31,0.66]
[1759379765653,32.04,223.33,223.32,0.66]
[1759379767259,33.55233875,223.33,223.29,79.86]
[1759379767457,33.55233875,223.33,223.29,79.2]
[1759379767769,33.55233875,223.33,223.3,0.66]
[1759379768080,32.04,223.33,223.31,0.66]
[1759379768251,33.55233875,223.33,223.31,0.66]
[1759379770297,1.51233875,223.32,223.28,83.67866988]
[1759379770456,1.51233875,223.32,223.29,0.66]
[1759379770775,1.51233875,223.32,223.3,0.66]
[1759379773790,5.99022582,223.32,223.3,0.66]
[1759379774073,1.51233875,223.31,223.3,0.66]
[1759379774275,1.51233875,223.32,223.3,0.66]
[1759379774486,33.49233875,223.31,223.3,0.66]
[1759379774672,31.98,223.31,223.3,0.66]
[1759379774979,33.49233875,223.31,223.3,79.2]
[1759379775178,33.49233875,223.31,223.3,79.86]
[1759379775978,37.97041854,223.31,223.3,79.2]
[1759379776890,37.97041854,223.31,223.23,0.66]
[1759379776891,49.16561803,223.31,223.23,79.2]
[1759379777194,47.65327928,223.31,223.23,0.66]
[1759379777361,1.51233875,223.24,223.21,0.66]
[1759379777562,33.51233875,223.23,223.22,0.66]
[1759379777754,32.0,223.23,223.22,79.86]
[1759379778157,11.19394588,223.34,223.23,10.87647521]
[1759379778382,1.51233875,223.31,223.24,0.66]
[1759379778564,32.0,223.3,223.24,0.66]
[1759379779066,33.51233875,223.3,223.24,0.66]
[1759379779390,33.51233875,223.3,223.25,10.87647521]
[1759379779563,33.51233875,223.3,223.26,0.66]
[1759379780190,32.0,223.3,223.26,0.66]
[1759379781362,32.0,223.29,223.27,0.66]
[1759379781570,32.0,223.28,223.25,4.47925755]
[1759379782185,32.0,223.28,223.27,10.87647521]
[1759379782494,32.0,223.28,223.27,11.59647521]
[1759379782796,31.98,223.28,223.27,11.59647521]
[1759379783589,31.98,223.28,223.27,16.07535728]
[1759379783974,31.98,223.28,223.27,11.59647521]
[1759379784178,33.49233875,223.28,223.22,0.7]
[1759379784363,1.51233875,223.25,223.23,10.87647521]
[1759379784567,31.98,223.24,223.23,11.57647521]
[1759379786191,31.98,223.24,223.2,10.87647521]
[1759379786393,33.49233875,223.24,223.21,0.7]
[1759379786693,33.49233875,223.24,223.2,0.7]